fUSD/lending_fUSD_20240101
["ID","MTS","AMOUNT","RATE_DAILY","PERIOD"]
[309782194,1704117056672,-500.0,0.00035616,2]
[309782195,1704117056682,-500.0,0.00035616,2]
[309782196,1704117056692,-611.28,0.00035616,2]
[309782197,1704117056703,-500.0,0.00035616,2]
[309782198,1704117056713,-500.0,0.00035616,2]
[309782199,1704117056723,-509.50547401,0.00035616,2]
[309782200,1704117056734,-546.28506602,0.00035616,2]
[309782201,1704117056746,-500.0,0.00035616,2]
[309782202,1704117056756,-500.0,0.00035616,2]
[309782203,1704117056766,-500.0,0.00035616,2]
[309782204,1704117056777,-500.0,0.00035616,2]
[309782205,1704117056788,-500.0,0.00035616,2]
[309782206,1704117056797,-500.0,0.00035616,2]
[309782207,1704117056807,-500.0,0.00035616,2]
[309782208,1704117056817,-522.68114292,0.00035616,2]
[309782209,1704117056827,-500.0,0.00035616,2]
[309782210,1704117056837,-500.0,0.00035616,2]
[309782211,1704117056848,-500.0,0.00035616,2]
[309782212,1704117056858,-527.56755354,0.00035616,2]
[309782213,1704117056868,-500.0,0.00035616,2]
[309782214,1704117056878,-500.0,0.00035616,2]
[309782215,1704117056889,-629.04254992,0.00035616,2]
[309782216,1704117056899,-500.0,0.00035616,2]
[309782217,1704117056910,-500.0,0.00035616,2]
[309782218,1704117056922,-500.0,0.00035616,2]
[309782219,1704117056932,-500.0,0.00035616,2]
[309782220,1704117056942,-324.7207385,0.00035616,2]
[309782221,1704117056953,-531.03841586,0.00035616,2]
[309782222,1704117056964,-500.0,0.00035616,2]
[309782223,1704117056974,-500.0,0.00035616,2]
[309782224,1704117056984,-500.0,0.00035616,2]
[309782225,1704117056994,-500.0,0.00035616,2]
[309782226,1704117057005,-500.0,0.00035616,2]
[309782227,1704117057015,-500.0,0.00035616,2]
[309782228,1704117057026,-500.0,0.00035616,2]
[309782229,1704117057036,-500.0,0.00035616,2]
[309782230,1704117057046,-500.0,0.00035616,2]
[309782231,1704117057055,-500.0,0.00035616,2]
[309782232,1704117057065,-500.0,0.00035616,2]
[309782233,1704117057075,-547.97477567,0.00035616,2]
[309782234,1704117057086,-500.0,0.00035616,2]
[309782235,1704117057095,-500.0,0.00035616,2]
[309782236,1704117057105,-645.96,0.00035616,2]
[309782237,1704117057116,-500.0,0.00035616,2]
[309782238,1704117057126,-500.0,0.00035616,2]
[309782239,1704117057136,-500.0,0.00035616,2]
[309782240,1704117057146,-500.0,0.00035616,2]
[309782241,1704117057157,-500.0,0.00035616,2]
[309782242,1704117057167,-500.0,0.00035616,2]
[309782243,1704117057177,-500.0,0.00035616,2]
[309782244,1704117057187,-500.0,0.00035616,2]
[309782245,1704117057198,-500.0,0.00035616,2]
[309782246,1704117057209,-500.0,0.00035616,2]
[309782247,1704117057220,-501.18,0.00035616,2]
[309782248,1704117057230,-500.0,0.00035616,2]
[309782249,1704117057240,-521.29214695,0.00035616,2]
[309782250,1704117057250,-500.0,0.00035616,2]
[309782251,1704117057259,-500.0,0.00035616,2]
[309782252,1704117057270,-150.72,0.00035616,2]
[309782253,1704117057279,-3000.0,0.0003562,4]
[309782254,1704117057289,-3000.0,0.0003563,4]
[309782255,1704117057298,-3000.0,0.0003564,4]
[309782256,1704117057308,-3000.0,0.0003565,4]
[309782257,1704117057317,-3000.0,0.0003566,4]
[309782258,1704117057327,-3000.0,0.0003567,4]
[309782259,1704117057337,-3000.0,0.0003568,4]
[309782260,1704117057346,-3000.0,0.0003569,4]
[309782261,1704117057356,-222.22222,0.00035698,2]
[309782262,1704117057366,-3000.0,0.000357,4]
[309782263,1704117057375,-3000.0,0.0003571,4]
[309782264,1704117057385,-3000.0,0.0003572,4]
[309782265,1704117057394,-3000.0,0.0003573,4]
[309782266,1704117057404,-3000.0,0.0003574,4]
[309782267,1704117057413,-3000.0,0.0003575,5]
[309782268,1704117057422,-3000.0,0.0003576,5]
[309782269,1704117057432,-3000.0,0.0003577,5]
[309782270,1704117057441,-3000.0,0.0003578,5]
[309782271,1704117057450,-3000.0,0.0003579,5]
[309782272,1704117057460,-222.22222,0.00035798,2]
[309782273,1704117057470,-3000.0,0.000358,5]
[309782274,1704117057480,-3000.0,0.0003581,5]
[309782275,1704117057490,-3000.0,0.0003582,5]
[309782276,1704117057499,-3000.0,0.0003583,5]
[309782277,1704117057509,-3000.0,0.0003584,5]
[309782278,1704117057519,-3000.0,0.0003585,5]
[309782279,1704117057528,-3000.0,0.0003586,5]
[309782280,1704117057538,-3000.0,0.0003587,5]
[309782281,1704117057548,-3000.0,0.0003588,5]
[309782282,1704117057558,-500.0,0.00035888,2]
[309782283,1704117057571,-500.0,0.00035888,2]
[309782284,1704117057580,-1013.39,0.00035888,2]
[309782285,1704117057590,-509.4839755,0.0003589,2]
[309782286,1704117057600,-500.0,0.0003589,2]
[309782287,1704117057610,-334.38,0.0003589,2]
[309782288,1704117057620,-406.12742393,0.0003589,2]
[309782289,1704117057630,-167.09,0.0003589,2]
[309782290,1704117057640,-500.0,0.0003589,2]
[309782291,1704117057651,-321.9,0.0003589,2]
[309782292,1704117057661,-500.0,0.0003589,2]
[309782293,1704117057671,-578.40747597,0.0003589,2]
[309782294,1704117057681,-586.38,0.0003589,2]
[309782295,1704117057690,-226.13,0.0003589,2]
[309782296,1704117057700,-500.0,0.0003589,2]
[309782297,1704117057710,-267.8,0.0003589,2]
[309782298,1704117057719,-500.0,0.0003589,2]
[309782299,1704117057730,-500.0,0.0003589,2]
[309782300,1704117057741,-500.0,0.0003589,2]
[309782301,1704117057753,-500.0,0.0003589,2]
[309782302,1704117057763,-338.91,0.0003589,2]
[309782303,1704117057773,-500.0,0.0003589,2]
[309782304,1704117057784,-412.05,0.0003589,2]
[309782305,1704117057794,-500.0,0.0003589,2]
[309782306,1704117057805,-551.74737378,0.0003589,2]
[309782307,1704117057815,-500.0,0.0003589,2]
[309782308,1704117057826,-500.0,0.0003589,2]
[309782309,1704117057835,-284.62,0.0003589,2]
[309782310,1704117057847,-500.0,0.0003589,2]
[309782311,1704117057857,-361.01,0.0003589,2]
[309782312,1704117057867,-500.0,0.0003589,2]
[309782313,1704117057877,-500.0,0.0003589,2]
[309782314,1704117057888,-631.03,0.0003589,2]
[309782315,1704117057898,-500.0,0.0003589,2]
[309782316,1704117057908,-500.0,0.0003589,2]
[309782317,1704117057919,-357.03,0.0003589,2]
[309782318,1704117057930,-207.43,0.0003589,2]
[309782319,1704117057941,-374.12,0.0003589,2]
[309782320,1704117057951,-169.32,0.0003589,2]
[309782321,1704117057962,-500.0,0.0003589,2]
[309782322,1704117057971,-500.0,0.0003589,2]
[309782323,1704117057982,-554.92,0.0003589,2]
[309782324,1704117057992,-500.0,0.0003589,2]
[309782325,1704117058001,-500.0,0.0003589,2]
[309782326,1704117058011,-158.04638991,0.0003589,2]
[309782327,1704117058021,-416.56834361,0.0003589,2]
[309782328,1704117058032,-525.22,0.0003589,2]
[309782329,1704117058042,-436.9,0.0003589,2]
[309782330,1704117058052,-253.08,0.0003589,2]
[309782331,1704117058062,-763.87,0.0003589,2]
[309782332,1704117058071,-500.0,0.0003589,2]
[309782333,1704117058081,-500.0,0.0003589,2]
[309782334,1704117058093,-156.61,0.0003589,2]
[309782335,1704117058103,-245.25,0.0003589,2]
[309782336,1704117058113,-500.0,0.0003589,2]
[309782337,1704117058124,-500.0,0.0003589,2]
[309782338,1704117058135,-500.0,0.0003589,2]
[309782339,1704117058145,-190.320001,0.0003589,2]
[309782340,1704117058155,-490.51,0.0003589,2]
[309782341,1704117058166,-500.94306897,0.0003589,2]
[309782342,1704117058177,-500.0,0.0003589,2]
[309782343,1704117058187,-472.68,0.0003589,2]
[309782344,1704117058198,-408.7,0.0003589,2]
[309782345,1704117058208,-583.90786959,0.0003589,2]
[309782346,1704117058217,-500.0,0.0003589,2]
[309782347,1704117058227,-500.0,0.0003589,2]
[309782348,1704117058237,-190.15828524,0.0003589,2]
[309782349,1704117058248,-271.74,0.0003589,2]
[309782350,1704117058259,-3000.0,0.0003589,5]
[309782351,1704117058269,-422.89436484,0.0003589,2]
[309782352,1704117058280,-383.88,0.0003589,2]
[309782353,1704117058290,-190.17,0.0003589,2]
[309782354,1704117058300,-500.0,0.0003589,2]
[309782355,1704117058310,-638.97,0.0003589,2]
[309782356,1704117058322,-500.0,0.0003589,2]
[309782357,1704117058332,-500.0,0.0003589,2]
[309782358,1704117058343,-339.6764141,0.0003589,2]
[309782359,1704117058353,-500.0,0.0003589,2]
[309782360,1704117058363,-316.64,0.0003589,2]
[309782361,1704117058373,-500.0,0.0003589,2]
[309782362,1704117058383,-500.0,0.0003589,2]
[309782363,1704117058394,-500.0,0.0003589,2]
[309782364,1704117058405,-500.0,0.0003589,2]
[309782365,1704117058415,-500.0,0.0003589,2]
[309782366,1704117058426,-500.0,0.0003589,2]
[309782367,1704117058436,-166.52,0.0003589,2]
[309782368,1704117058446,-1870.25,0.0003589,2]
[309782369,1704117058455,-500.0,0.0003589,2]
[309782370,1704117058465,-500.0,0.0003589,2]
[309782371,1704117058474,-500.0,0.0003589,2]
[309782372,1704117058483,-500.0,0.0003589,2]
[309782373,1704117058493,-500.0,0.0003589,2]
[309782374,1704117058502,-500.0,0.0003589,2]
[309782375,1704117058511,-500.0,0.0003589,2]
[309782376,1704117058553,-500.0,0.0003589,2]
[309782377,1704117058563,-500.0,0.0003589,2]
[309782378,1704117058575,-500.0,0.0003589,2]
[309782379,1704117058584,-500.0,0.0003589,2]
[309782380,1704117058595,-500.0,0.0003589,2]
[309782381,1704117058603,-500.0,0.0003589,2]
[309782382,1704117058612,-500.0,0.0003589,2]
[309782383,1704117058622,-500.0,0.0003589,2]
[309782384,1704117058631,-500.0,0.0003589,2]
[309782385,1704117058640,-500.0,0.0003589,2]
[309782386,1704117058649,-543.03,0.0003589,2]
[309782387,1704117058658,-500.0,0.0003589,2]
[309782388,1704117058667,-500.0,0.0003589,2]
[309782389,1704117058676,-500.0,0.0003589,2]
[309782390,1704117058685,-752.72,0.0003589,2]
[309782391,1704117058694,-500.0,0.0003589,2]
[309782392,1704117058704,-500.0,0.0003589,2]
[309782393,1704117058713,-286.11,0.0003589,2]
[309782394,1704117058722,-500.0,0.0003589,2]
[309782395,1704117058731,-500.0,0.0003589,2]
[309782396,1704117058740,-500.0,0.0003589,2]
[309782397,1704117058749,-500.0,0.0003589,2]
[309782398,1704117058758,-500.0,0.0003589,2]
[309782399,1704117058769,-500.0,0.0003589,2]
[309782400,1704117058779,-500.0,0.0003589,2]
[309782401,1704117058788,-500.0,0.0003589,2]
[309782402,1704117058798,-500.0,0.0003589,2]
[309782403,1704117058807,-500.0,0.0003589,2]
[309782404,1704117058816,-244.67,0.0003589,2]
[309782405,1704117058825,-459.66918026,0.0003589,2]
[309782406,1704117058834,-500.0,0.0003589,2]
[309782407,1704117058845,-500.0,0.0003589,2]
[309782408,1704117058854,-500.0,0.0003589,2]
[309782409,1704117058863,-500.0,0.0003589,2]
[309782410,1704117058873,-500.0,0.0003589,2]
[309782411,1704117058883,-500.0,0.0003589,2]
[309782412,1704117058893,-335.58,0.0003589,2]
[309782413,1704117058902,-548.79,0.0003589,2]
[309782414,1704117058911,-500.0,0.0003589,2]
[309782415,1704117058923,-500.0,0.0003589,2]
[309782416,1704117058932,-500.0,0.0003589,2]
[309782417,1704117058941,-205.94,0.0003589,2]
[309782418,1704117058952,-500.0,0.0003589,2]
[309782419,1704117058962,-500.0,0.0003589,2]
[309782420,1704117058972,-500.0,0.0003589,2]
[309782421,1704117058982,-500.0,0.0003589,2]
[309782422,1704117058991,-500.0,0.0003589,2]
[309782423,1704117059001,-625.24,0.0003589,2]
[309782424,1704117059011,-500.0,0.0003589,2]
[309782425,1704117059021,-500.0,0.0003589,2]
[309782426,1704117059032,-500.0,0.0003589,2]
[309782427,1704117059041,-623.4,0.0003589,2]
[309782428,1704117059051,-732.99,0.0003589,2]
[309782429,1704117059061,-500.0,0.0003589,2]
[309782430,1704117059071,-418.6,0.0003589,2]
[309782431,1704117059080,-500.0,0.0003589,2]
[309782432,1704117059091,-500.0,0.0003589,2]
[309782433,1704117059100,-500.0,0.0003589,2]
[309782434,1704117059109,-500.0,0.0003589,2]
[309782435,1704117059118,-500.0,0.0003589,2]
[309782436,1704117059128,-500.0,0.0003589,2]
[309782437,1704117059138,-500.0,0.0003589,2]
[309782438,1704117059148,-564.34,0.0003589,2]
[309782439,1704117059157,-500.0,0.0003589,2]
[309782440,1704117059167,-500.0,0.0003589,2]
[309782441,1704117059177,-500.0,0.0003589,2]
[309782442,1704117059186,-500.0,0.0003589,2]
[309782443,1704117059195,-500.0,0.0003589,2]
[309782444,1704117059204,-500.0,0.0003589,2]
[309782445,1704117059213,-500.0,0.0003589,2]
[309782446,1704117059223,-1348.23,0.0003589,2]
[309782447,1704117059232,-500.0,0.0003589,2]
[309782448,1704117059241,-500.0,0.0003589,2]
[309782449,1704117059254,-500.0,0.0003589,2]
[309782450,1704117059263,-500.0,0.0003589,2]
[309782451,1704117059272,-476.34,0.0003589,2]
[309782452,1704117059282,-190.65,0.0003589,2]
[309782453,1704117059291,-630.47,0.0003589,2]
[309782454,1704117059300,-174.99,0.0003589,2]
[309782455,1704117059309,-500.0,0.0003589,2]
[309782456,1704117059318,-500.0,0.0003589,2]
[309782457,1704117059328,-500.0,0.0003589,2]
[309782458,1704117059337,-500.0,0.0003589,2]
[309782459,1704117059347,-500.0,0.0003589,2]
[309782460,1704117059356,-500.0,0.0003589,5]
[309782461,1704117059365,-500.0,0.0003589,2]
[309782462,1704117059375,-500.0,0.0003589,2]
[309782463,1704117059384,-500.0,0.0003589,2]
[309782464,1704117059394,-500.0,0.0003589,2]
[309782465,1704117059403,-500.0,0.0003589,2]
[309782466,1704117059413,-500.0,0.0003589,2]
[309782467,1704117059422,-500.0,0.0003589,2]
[309782468,1704117059431,-500.0,0.0003589,2]
[309782469,1704117059441,-500.0,0.0003589,2]
[309782470,1704117059450,-500.0,0.0003589,2]
[309782471,1704117059461,-500.0,0.0003589,2]
[309782472,1704117059471,-500.0,0.0003589,2]
[309782473,1704117059480,-500.0,0.0003589,2]
[309782474,1704117059490,-500.0,0.0003589,2]
[309782475,1704117059501,-1292.27,0.0003589,2]
[309782476,1704117059510,-500.0,0.0003589,2]
[309782477,1704117059519,-500.0,0.0003589,2]
[309782478,1704117059529,-518.93,0.0003589,2]
[309782479,1704117059538,-500.0,0.0003589,2]
[309782480,1704117059549,-500.0,0.0003589,2]
[309782481,1704117059558,-500.0,0.0003589,2]
[309782482,1704117059574,-559.31,0.0003589,2]
[309782483,1704117059583,-500.0,0.0003589,2]
[309782484,1704117059594,-590.96,0.0003589,2]
[309782485,1704117059606,-291.54,0.0003589,2]
[309782486,1704117059618,-500.0,0.0003589,2]
[309782487,1704117059629,-500.0,0.0003589,2]
[309782488,1704117059638,-647.04,0.0003589,2]
[309782489,1704117059650,-500.0,0.0003589,2]
[309782490,1704117059660,-150.33249513,0.0003589,2]
[309782491,1704117059670,-493.61,0.0003589,2]
[309782492,1704117059679,-196.59,0.0003589,2]
[309782493,1704117059689,-500.0,0.0003589,2]
[309782494,1704117059698,-500.0,0.0003589,2]
[309782495,1704117059708,-598.16580801,0.0003589,2]
[309782496,1704117059717,-636.11,0.0003589,2]
[309782497,1704117059727,-500.0,0.0003589,2]
[309782498,1704117059736,-280.02,0.0003589,2]
[309782499,1704117059746,-500.0,0.0003589,2]
[309782500,1704117059755,-500.0,0.0003589,2]
[309782501,1704117059764,-500.0,0.0003589,2]
[309782502,1704117059775,-500.0,0.0003589,2]
[309782503,1704117059784,-500.0,0.0003589,2]
[309782504,1704117059794,-500.0,0.0003589,2]
[309782505,1704117059803,-500.0,0.0003589,2]
[309782506,1704117059813,-222.22222,0.00035898,2]
[309782507,1704117059823,-3000.0,0.000359,5]
[309782508,1704117059833,-3000.0,0.0003591,5]
[309782509,1704117059845,-3000.0,0.0003592,5]
[309782510,1704117059854,-3000.0,0.0003593,5]
[309782511,1704117059863,-5632.833998,0.0003594,5]
[309782512,1704117059873,-222.22222,0.00035998,2]
[309782513,1704117059883,-153.21135159,0.00036076,26]
[309782514,1704117059892,-222.22222,0.00036098,4]
[309782515,1704117059902,-153.92,0.00036115,2]
[309782516,1704117059911,-500.0,0.00036164,2]
[309782517,1704117059921,-500.0,0.00036164,2]
[309782518,1704117059930,-188.81,0.00036164,2]
[309782519,1704117059940,-500.0,0.00036164,2]
[309782520,1704117059950,-500.0,0.00036164,2]
[309782521,1704117059959,-417.57841719,0.00036164,2]
[309782522,1704117059969,-500.0,0.00036164,2]
[309782523,1704117059979,-500.0,0.00036164,2]
[309782524,1704117059988,-649.39,0.00036164,2]
[309782525,1704117059998,-645.41881814,0.00036164,2]
[309782526,1704117060007,-500.0,0.00036164,2]
[309782527,1704117060017,-403.3,0.00036164,2]
[309782528,1704117060026,-763.87,0.00036164,2]
[309782529,1704117060036,-260.11,0.00036164,2]
[309782530,1704117060046,-500.0,0.00036164,2]
[309782531,1704117060055,-423.5,0.00036164,2]
[309782532,1704117060065,-322.72,0.00036164,2]
[309782533,1704117060076,-500.0,0.00036164,2]
[309782534,1704117060086,-298.05,0.00036164,2]
[309782535,1704117060095,-500.0,0.00036164,2]
[309782536,1704117060105,-638.97,0.00036164,2]
[309782537,1704117060116,-500.0,0.00036164,2]
[309782538,1704117060126,-500.0,0.00036164,2]
[309782539,1704117060137,-458.76,0.00036164,2]
[309782540,1704117060147,-500.0,0.00036164,2]
[309782541,1704117060157,-462.16,0.00036164,2]
[309782542,1704117060166,-500.0,0.00036164,2]
[309782543,1704117060176,-216.57,0.00036164,2]
[309782544,1704117060187,-500.0,0.00036164,2]
[309782545,1704117060197,-500.0,0.00036164,2]
[309782546,1704117060207,-1870.25,0.00036164,2]
[309782547,1704117060217,-500.0,0.00036164,2]
[309782548,1704117060226,-500.0,0.00036164,2]
[309782549,1704117060236,-500.0,0.00036164,2]
[309782550,1704117060246,-285.3,0.00036164,2]
[309782551,1704117060256,-500.0,0.00036164,2]
[309782552,1704117060265,-500.0,0.00036164,2]
[309782553,1704117060276,-500.0,0.00036164,2]
[309782554,1704117060286,-500.0,0.00036164,2]
[309782555,1704117060296,-500.0,0.00036164,2]
[309782556,1704117060307,-266.96,0.00036164,2]
[309782557,1704117060318,-561.08,0.00036164,2]
[309782558,1704117060328,-500.0,0.00036164,2]
[309782559,1704117060339,-500.0,0.00036164,2]
[309782560,1704117060348,-500.0,0.00036164,2]
[309782561,1704117060359,-500.0,0.00036164,2]
[309782562,1704117060368,-500.0,0.00036164,2]
[309782563,1704117060379,-543.03,0.00036164,2]
[309782564,1704117060390,-500.0,0.00036164,2]
[309782565,1704117060399,-500.0,0.00036164,2]
[309782566,1704117060409,-500.0,0.00036164,2]
[309782567,1704117060419,-752.72,0.00036164,2]
[309782568,1704117060432,-500.0,0.00036164,2]
[309782569,1704117060444,-500.0,0.00036164,2]
[309782570,1704117060456,-500.0,0.00036164,2]
[309782571,1704117060466,-500.0,0.00036164,2]
[309782572,1704117060478,-283.31,0.00036164,2]
[309782573,1704117060488,-500.0,0.00036164,2]
[309782574,1704117060498,-451.47,0.00036164,2]
[309782575,1704117060508,-500.0,0.00036164,2]
[309782576,1704117060518,-500.0,0.00036164,2]
[309782577,1704117060529,-500.0,0.00036164,2]
[309782578,1704117060539,-500.0,0.00036164,2]
[309782579,1704117060549,-545.83,0.00036164,2]
[309782580,1704117060560,-500.0,0.00036164,2]
[309782581,1704117060570,-500.0,0.00036164,2]
[309782582,1704117060580,-500.0,0.00036164,2]
[309782583,1704117060591,-500.0,0.00036164,2]
[309782584,1704117060600,-500.0,0.00036164,2]
[309782585,1704117060609,-500.0,0.00036164,2]
[309782586,1704117060620,-500.0,0.00036164,2]
[309782587,1704117060630,-500.0,0.00036164,2]
[309782588,1704117060641,-500.0,0.00036164,2]
[309782589,1704117060650,-197.55,0.00036164,2]
[309782590,1704117060661,-500.0,0.00036164,2]
[309782591,1704117060671,-500.0,0.00036164,2]
[309782592,1704117060682,-500.0,0.00036164,2]
[309782593,1704117060694,-500.0,0.00036164,2]
[309782594,1704117060705,-500.0,0.00036164,2]
[309782595,1704117060716,-500.0,0.00036164,2]
[309782596,1704117060726,-500.0,0.00036164,2]
[309782597,1704117060737,-732.99,0.00036164,2]
[309782598,1704117060747,-500.0,0.00036164,2]
[309782599,1704117060756,-500.0,0.00036164,2]
[309782600,1704117060767,-500.0,0.00036164,2]
[309782601,1704117060779,-500.0,0.00036164,2]
[309782602,1704117060792,-500.0,0.00036164,2]
[309782603,1704117060802,-500.0,0.00036164,2]
[309782604,1704117060813,-500.0,0.00036164,2]
[309782605,1704117060824,-500.0,0.00036164,2]
[309782606,1704117060835,-356.31,0.00036164,2]
[309782607,1704117060846,-500.0,0.00036164,2]
[309782608,1704117060856,-500.0,0.00036164,2]
[309782609,1704117060866,-500.0,0.00036164,2]
[309782610,1704117060875,-500.0,0.00036164,2]
[309782611,1704117060886,-500.0,0.00036164,2]
[309782612,1704117060897,-1348.23,0.00036164,2]
[309782613,1704117060906,-500.0,0.00036164,2]
[309782614,1704117060916,-496.97,0.00036164,2]
[309782615,1704117060927,-500.0,0.00036164,2]
[309782616,1704117060937,-500.0,0.00036164,2]
[309782617,1704117060948,-500.0,0.00036164,2]
[309782618,1704117060958,-500.0,0.00036164,2]
[309782619,1704117060970,-356.16,0.00036164,2]
[309782620,1704117060979,-614.76,0.00036164,2]
[309782621,1704117060990,-500.0,0.00036164,5]
[309782622,1704117061000,-500.0,0.00036164,2]
[309782623,1704117061010,-500.0,0.00036164,2]
[309782624,1704117061021,-500.0,0.00036164,2]
[309782625,1704117061032,-230.76,0.00036164,2]
[309782626,1704117061042,-500.0,0.00036164,2]
[309782627,1704117061053,-500.0,0.00036164,2]
[309782628,1704117061063,-500.0,0.00036164,2]
[309782629,1704117061073,-500.0,0.00036164,2]
[309782630,1704117061083,-500.0,0.00036164,2]
[309782631,1704117061094,-500.0,0.00036164,2]
[309782632,1704117061103,-554.97,0.00036164,2]
[309782633,1704117061114,-500.0,0.00036164,2]
[309782634,1704117061123,-500.0,0.00036164,2]
[309782635,1704117061133,-500.0,0.00036164,2]
[309782636,1704117061143,-1292.27,0.00036164,2]
[309782637,1704117061153,-518.93,0.00036164,2]
[309782638,1704117061163,-500.0,0.00036164,2]
[309782639,1704117061173,-500.0,0.00036164,2]
[309782640,1704117061183,-500.0,0.00036164,2]
[309782641,1704117061193,-500.0,0.00036164,2]
[309782642,1704117061202,-500.0,0.00036164,2]
[309782643,1704117061211,-500.0,0.00036164,2]
[309782644,1704117061222,-500.0,0.00036164,2]
[309782645,1704117061231,-620.68,0.00036164,2]
[309782646,1704117061241,-335.58,0.00036164,2]
[309782647,1704117061251,-402.64793922,0.00036164,2]
[309782648,1704117061260,-276.84,0.00036164,2]
[309782649,1704117061270,-528.09,0.00036164,2]
[309782650,1704117061389,-500.0,0.00036164,2]
[309782651,1704117061399,-500.0,0.00036164,2]
[309782652,1704117061409,-292.68,0.00036164,2]
[309782653,1704117061418,-1000.0,0.00036174,3]
[309782654,1704117061427,-1000.0,0.00036174,2]
[309782655,1704117061436,-1000.0,0.00036174,2]
[309782656,1704117061446,-1000.0,0.00036174,2]
[309782657,1704117061455,-1000.0,0.00036174,2]
[309782658,1704117061464,-373.63,0.00036184,2]
[309782659,1704117061474,-222.22222,0.00036198,4]
[309782660,1704117061483,-3000.0,0.0003622,2]
[309782661,1704117061493,-222.22222,0.00036298,4]
[309782662,1704117061502,-161.43,0.00036301,2]
[309782663,1704117061512,-222.22222,0.00036398,4]
[309782664,1704117061520,-152.0,0.00036402,3]
[309782665,1704117061529,-500.0,0.00036437,2]
[309782666,1704117061538,-500.0,0.00036437,2]
[309782667,1704117061547,-1013.39,0.00036437,2]
[309782668,1704117061557,-505.86461775,0.00036438,2]
[309782669,1704117061569,-500.0,0.00036438,2]
[309782670,1704117061579,-339.05,0.00036438,2]
[309782671,1704117061588,-500.0,0.00036438,2]
[309782672,1704117061598,-500.0,0.00036438,2]
[309782673,1704117061607,-530.48,0.00036438,2]
[309782674,1704117061617,-500.0,0.00036438,2]
[309782675,1704117061626,-763.87,0.00036438,2]
[309782676,1704117061636,-375.5913686,0.00036438,2]
[309782677,1704117061646,-462.66,0.00036438,2]
[309782678,1704117061656,-395.3,0.00036438,2]
[309782679,1704117061665,-638.97,0.00036438,2]
[309782680,1704117061674,-500.0,0.00036438,2]
[309782681,1704117061684,-500.0,0.00036438,2]
[309782682,1704117061693,-500.0,0.00036438,2]
[309782683,1704117061702,-375.39,0.00036438,2]
[309782684,1704117061711,-357.43,0.00036438,2]
[309782685,1704117061721,-500.0,0.00036438,2]
[309782686,1704117061730,-1870.25,0.00036438,2]
[309782687,1704117061739,-500.0,0.00036438,2]
[309782688,1704117061748,-500.0,0.00036438,2]
[309782689,1704117061757,-500.0,0.00036438,2]
[309782690,1704117061767,-500.0,0.00036438,2]
[309782691,1704117061779,-500.0,0.00036438,2]
[309782692,1704117061789,-335.99,0.00036438,2]
[309782693,1704117061799,-500.0,0.00036438,2]